[Event "FRA-ch Teams Top 16-Bas 2022"]
[Site "Chartres"]
[Date "2022.06.17"]
[Round "9.27"]
[White "Crut, Aurelien"]
[Black "Ganguly, Surya Shekhar"]
[Result "0-1"]
[ECO "C67"]
[WhiteElo "2355"]
[BlackElo "2616"]
[Annotator "TA"]
[PlyCount "126"]
[EventDate "2022.06.16"]
[EventType "team-tourn"]
[EventCountry "FRA"]
[SourceTitle "playchess.com"]
[Source "ChessBase"]
[SourceQuality "1"]
[TimeControl "40/5400+30:1800+30"]

{[%evp 12,126,14,11,37,21,14,17,25,17,7,1,0,0,0,-13,0,-14,0,-16,0,0,0,0,0,0,0,-16,-8,0,0,-46,-46,-58,-37,-64,-62,-65,-23,-35,-27,-31,-4,-4,0,-5,0,-66,-74,-83,-79,-167,-179,-201,-202,-201,-200,-197,-197,-197,-179,-179,-179,-179,-178,-275,-275,-256,-182,-179,-179,-179,-179,-186,-179,-179,-179,-743,-533,-1022,-949,-854,-833,-1808,-1684,-1996,-896,-985,-425,-5522,-6697,-6303,-8054,-29960,-29962,-29962,-29968,-29957,-29958,-29974,-29975,-29975,-29977,-29977,-29977,-29978,-29979,-29979,-29980,-29980,-29981,-29979,-29980,-29983,-29984,-29984,-29985]} 1. e4 {[%emt 0:00:04]} e5 {[%emt 0:00:23]} 2. Nf3 {[%emt 0:00:13]} Nc6 {[%emt 0:00:05]} 3. Bb5 {[%emt 0:00:15]} Nf6 {[%emt 0:00:08]} 4. O-O {[%emt 0:04:47][%cal Bh1f1,Bf1e1,Be1e5][%mdl 32]} Nxe4 {[%emt 0:00:11]} 5. Re1 {[%emt 0:03:39]} Nd6 {[%emt 0:00:07]} 6. Nxe5 {[%emt 0:01:05]} Be7 {[%emt 0:00:07]} 7. Bf1 {[%emt 0:02:49]} Nf5 {[%emt 0:00:11] C67: Ruy Lopez: Berlin Defence: 4 0-0 Nxe4.} 8. c3 {[%emt 0:06:46]} Nxe5 {[%emt 0:02:28]} 9. Rxe5 {[%emt 0:02:46]} d6 {[%emt 0:00:06] The position is equal.} 10. Re1 {[%emt 0:02:00]} c5 {[%emt 0:00:44]} 11. d3 {[%emt 0:07:18]} O-O {[%emt 0:00:30]} 12. Nd2 {[%emt 0:00:32]} Be6 {[%emt 0:04:35]} 13. Nf3 {[%emt 0:05:22]} Bf6 {[%emt 0:01:15] [#]} 14. h3 $146 {[%emt 0:18:52]} ({Predecessor:} 14. g3 h6 15. Bg2 Qb6 16. Nd2 d5 17. Nf1 Rfe8 18. Qb3 g5 19. Bd2 Qd6 20. Re2 {0-1 (30) Arjun,K (2397)-Ganguly,S (2642) Dubai 2018}) 14... Re8 {[%emt 0:02:36]} 15. Bf4 {[%emt 0:02:29]} h6 {[%emt 0:03:48]} 16. g4 {[%emt 0:05:59]} Ne7 {[%emt 0:04:29]} 17. Bg2 {[%emt 0:04:27]} Ng6 {[%emt 0:00:41]} 18. Bg3 {[%emt 0:01:04]} Qb6 {[%emt 0:08:56]} 19. Qd2 {[%emt 0:05:50]} Bd5 {[%emt 0:00:51]} 20. Rxe8+ {[%emt 0:03:42]} Rxe8 {[%emt 0:00:25]} 21. Ne1 {[%emt 0:01:52]} (21. a3 $11) 21... Qc6 $15 {[%emt 0:02:00][%cal Oe8e1]} 22. Bxd5 {[%emt 0:01:34]} Qxd5 {[%emt 0:00:07]} 23. c4 {[%emt 0:03:41]} Qc6 $40 {[%emt 0:02:37][%mdl 128] Black is up to no good. 0x0.00166ce03b68dp-1022s more active pieces.} 24. Ng2 {[%emt 0:00:18] Inhibits Bh4.} d5 {[%emt 0:05:35]} 25. Re1 {[%emt 0:00:45]} Rxe1+ {[%emt 0:00:09]} 26. Nxe1 {[%emt 0:00:17]} dxc4 {[%emt 0:00:16]} 27. dxc4 {[%emt 0:00:09]} Qe4 {[%emt 0:00:06]} 28. b3 {[%emt 0:02:15]} Bd4 {[%emt 0:05:35]} 29. Qd1 {[%emt 0:05:27]} (29. Ng2 $11) 29... Nf4 {[%emt 0:06:52] White is on the road to losing.} 30. Bxf4 {[%emt 0:03:33]} Qxf4 $17 {[%emt 0:00:04][%mdl 4096] Endgame KQB-KQN} 31. Qe2 {[%emt 0:03:01]} (31. Qf3 $17 {was called for.} Qd2 32. Nd3) 31... Qg3+ $1 $19 {[%emt 0:00:27]} 32. Ng2 {[%emt 0:00:18]} g5 {[%emt 0:04:58]} ({And not} 32... Qxh3 33. Qe8+ Kh7 34. Qxf7 $15) 33. Kf1 {[%emt 0:01:25]} Qxh3 {[%emt 0:00:24][%cal Rh3h1] [#]} 34. Qe8+ {[%emt 0:00:53]} Kg7 {[%emt 0:00:03] Hoping for ...Qh1+.} 35. Qe4 {[%emt 0:00:08]} h5 {[%emt 0:01:54]} 36. gxh5 {[%emt 0:00:41]} Qh1+ {[%emt 0:00:21]} ({Inferior is} 36... Qxh5 37. Qxb7 Qh1+ 38. Ke2 $17) 37. Ke2 {[%emt 0:00:08]} Qxh5+ {[%emt 0:00:06]} 38. Qf3 {[%emt 0:01:48]} (38. f3 {keeps fighting.}) 38... Qxf3+ {[%emt 0:19:57]} 39. Kxf3 {[%emt 0:00:01] KB-KN} f5 {[%emt 0:00:09]} 40. Ne1 {[%emt 0:00:35]} g4+ {[%emt 0:00:12]} 41. Kg2 {[%emt 0:01:42]} a6 {[%emt 0:15:52]} 42. a4 {[%emt 0:03:07]} Kg6 {[%emt 0:02:36] And now ...Kg5 would win.} 43. Nd3 {[%emt 0:06:06]} Kf6 {[%emt 0:00:28] Threatens to win with ...Kg5.} 44. f3 $2 {[%emt 0:07:01]} (44. Kg3) 44... Kg5 {[%emt 0:00:11]} 45. Kg3 {[%emt 0:01:08]} f4+ {[%emt 0:02:40]} 46. Kg2 {[%emt 0:00:06]} Kf5 {[%emt 0:00:05]} 47. Ne1 {[%emt 0:01:36]} Be3 {[%emt 0:01:29]} 48. Nd3 {[%emt 0:00:20]} b6 {[%emt 0:02:07]} (48... gxf3+ $142 49. Kxf3 a5) 49. fxg4+ {[%emt 0:08:51]} Kxg4 {[%emt 0:00:23] ( -> ...f3+)} 50. Ne5+ {[%emt 0:00:21]} (50. Ne1 $142) 50... Kf5 {[%emt 0:00:10]} 51. Nd7 {[%emt 0:00:14] [#]} Ke4 $1 {[%emt 0:00:36]} 52. Nxb6 {[%emt 0:00:07]} Kd3 {[%emt 0:02:37] Black mates.} 53. Nd5 {[%emt 0:02:35]} a5 {[%emt 0:01:58]} 54. Kf3 {[%emt 0:01:25]} Kc2 {[%emt 0:00:41]} 55. b4 {[%emt 0:03:44]} cxb4 {[%emt 0:01:40]} 56. Nxe3+ {[%emt 0:00:09]} fxe3 {[%emt 0:00:09] K3P-KPP} 57. c5 {[%emt 0:00:13]} Kd3 {[%emt 0:02:05]} 58. c6 {[%emt 0:00:08]} e2 {[%emt 0:00:05]} 59. c7 {[%emt 0:00:10]} e1=Q {[%emt 0:00:08]} 60. c8=Q {[%emt 0:00:02]} Qe4+ {[%emt 0:00:25]} 61. Kg3 {[%emt 0:00:24]} b3 {[%emt 0:00:20]} 62. Qd8+ {[%emt 0:00:28]} Qd4 {[%emt 0:02:45]} 63. Qxa5 {[%emt 0:00:20]} Kc2 {[%emt 0:00:05] Weighted Error Value: White=0.66/Black=0.12 (very precise)} 0-1

[Event "FRA-ch Teams Top 16-Bas 2022"]
[Site "Chartres"]
[Date "2022.06.17"]
[Round "9.28"]
[White "Lazarev, Vladimir"]
[Black "Marzolo, Cyril"]
[Result "1/2-1/2"]
[ECO "E36"]
[WhiteElo "2491"]
[BlackElo "2376"]
[Annotator "TA"]
[PlyCount "34"]
[EventDate "2022.06.16"]
[EventType "team-tourn"]
[EventCountry "FRA"]
[SourceTitle "playchess.com"]
[Source "ChessBase"]
[SourceQuality "1"]
[TimeControl "40/5400+30:1800+30"]

{[%evp 12,34,14,16,16,9,0,10,4,-16,0,0,0,0,7,4,0,0,-17,-30,-27,-39,-35,-36,-31]} 1. d4 {[%emt 0:03:56]} Nf6 {[%emt 0:00:19]} 2. c4 {[%emt 0:01:10]} e6 {[%emt 0:00:36]} 3. Nc3 {[%emt 0:01:11]} Bb4 {[%emt 0:00:43]} 4. Qc2 {[%emt 0:01:41]} d5 {[%emt 0:02:26]} 5. a3 {[%emt 0:06:25]} Bxc3+ {[%emt 0:01:06]} 6. Qxc3 {[%emt 0:00:02]} O-O {[%emt 0:03:54]} 7. Nf3 {[%emt 0:02:41]} b6 {[%emt 0:03:35] E36: Nimzo-Indian: Classical: 4...d5 5 a3.} 8. Bg5 {[%emt 1:17:24]} dxc4 {[%emt 0:05:13]} 9. Qxc4 {[%emt 0:00:00]} Ba6 {[%emt 0:00:10] The position is equal.} 10. Qc2 {[%emt 0:00:00]} Nbd7 {[%emt 1:17:28]} 11. e4 {[%emt 0:00:00]} Bxf1 {[%emt 0:00:00]} 12. Rxf1 {[%emt 0:00:00] Black must now prevent e5.} h6 {[%emt 0:00:00]} 13. Bh4 {[%emt 0:00:00] Threatens to win with e5.} Qc8 {[%emt 0:00:00]} 14. O-O-O {[%emt 0:00:00]} Qb7 {[%emt 0:00:00]} 15. Rfe1 {[%emt 0:00:00]} c5 {[%emt 0:00:00]} 16. d5 {[%emt 0:00:00]} exd5 {[%emt 0:00:00]} 17. exd5 {[%emt 0:00:00] [#]} Rfe8 $146 {[%emt 0:00:00] Prevents Re7.  Weighted Error Value: White=0.05 (flawless) /Black=0.02 (flawless)} (17... Nxd5 $2 18. Qe4 $18) ({Predecessor:} 17... Nxd5 18. Qe4 g5 19. Qxd5 Qxd5 20. Rxd5 Nf6 21. Rf5 Kg7 22. Bg3 Kg6 23. Rfe5 Rad8 {0-1 (52) Blackman,J (2208)-Kepeshchuk,M (2269) Chess.com INT 2019}) 1/2-1/2

[Event "FRA-ch Teams Top 16-Bas 2022"]
[Site "Chartres"]
[Date "2022.06.17"]
[Round "9.29"]
[White "Buscara, Sevan"]
[Black "Bailet, Pierre"]
[Result "1/2-1/2"]
[ECO "D35"]
[WhiteElo "2385"]
[BlackElo "2509"]
[Annotator "TA"]
[PlyCount "90"]
[EventDate "2022.06.16"]
[EventType "team-tourn"]
[EventCountry "FRA"]
[SourceTitle "playchess.com"]
[Source "ChessBase"]
[SourceQuality "1"]
[TimeControl "40/5400+30:1800+30"]

{[%evp 25,90,31,47,23,33,39,24,0,0,-21,-34,-15,4,4,4,6,2,8,7,0,20,15,13,0,18,18,50,10,13,14,13,10,13,10,10,6,8,8,8,12,16,8,9,6,7,2,2,2,7,0,8,-89,0,1,23,8,8,8,8,0,0,0,0,0,0,0,0]} 1. d4 {[%emt 0:00:05]} Nf6 {[%emt 0:00:35]} 2. Nf3 {[%emt 0:00:37]} d5 {[%emt 0:00:51]} 3. c4 {[%emt 0:01:00]} e6 {[%emt 0:00:39]} 4. Nc3 {[%emt 0:00:49]} Be7 {[%emt 0:00:34]} 5. cxd5 {[%emt 0:02:46]} exd5 {[%emt 0:00:16]} 6. Bf4 {[%emt 0:00:33]} c6 {[%emt 0:02:40]} 7. Qc2 {[%emt 0:01:15]} O-O {[%emt 0:03:54]} 8. e3 {[%emt 0:05:11]} Nbd7 {[%emt 0:02:05][%cal Bb8d7,Bd7f8,Bf8g6][%mdl 32]} 9. Bd3 {[%emt 0:01:55]} Re8 {[%emt 0:02:12]} 10. O-O {[%emt 0:07:03]} Nf8 {[%emt 0:02:15]} 11. h3 {[%emt 0:00:36]} Ng6 {[%emt 0:02:48]} 12. Bh2 {[%emt 0:00:23]} Bd6 {[%emt 0:00:47]} 13. Bxd6 {[%emt 0:02:46]} Qxd6 {[%emt 0:00:12]} 14. Rae1 {[%emt 0:06:09] D35: Queen's Gambit Declined: Exchange Variation.} Bd7 {[%emt 0:07:21]} 15. b4 {[%emt 0:05:38] [#]} Rac8 $146 {[%emt 1:10:51]} ({Don't do} 15... Qxb4 16. Rb1 Qd6 17. Rxb7 $16) ({Predecessor:} 15... b6 16. Rb1 Rac8 17. Bf5 Rc7 18. Bxd7 Qxd7 19. Na4 c5 20. bxc5 Ne4 {1-0 (61) Bihari,M (1992)-Tornyai,J (1974) Hungary 2010}) 16. Ng5 {[%emt 1:01:44] White has an edge.} b6 {[%emt 0:00:30]} 17. Qb1 {[%emt 0:00:30]} c5 {[%emt 0:00:30]} 18. Nb5 {[%emt 0:00:30]} Bxb5 {[%emt 0:00:30]} 19. Bxb5 {[%emt 0:00:30] Threatens to win with bxc5.} Red8 {[%emt 0:00:30]} 20. bxc5 {[%emt 0:00:00]} bxc5 {[%emt 0:00:30]} 21. dxc5 {[%emt 0:00:00]} Rxc5 {[%emt 0:00:00] Strongly threatening ...Rb8.} 22. Bd3 {[%emt 0:00:00]} d4 {[%emt 0:00:00]} 23. Ne4 {[%emt 0:00:00]} Nxe4 {[%emt 0:00:00]} 24. Bxe4 {[%emt 0:00:00]} dxe3 {[%emt 0:00:00]} 25. Rxe3 {[%emt 0:00:00]} Nf8 {[%emt 0:00:00]} 26. Rd3 {[%emt 0:00:00]} Qc7 {[%emt 0:00:00]} 27. Rxd8 {[%emt 0:00:00]} Qxd8 {[%emt 0:00:00]} 28. Rd1 {[%emt 0:00:00]} Qg5 {[%emt 0:00:00]} 29. g3 {[%emt 0:00:00]} g6 {[%emt 0:00:00]} 30. Qb8 {[%emt 0:00:00]} Rc1 {[%emt 0:00:00]} 31. Rxc1 {[%emt 0:00:00]} Qxc1+ $11 {[%emt 0:00:00][%mdl 4096] Endgame KQB-KQN} 32. Kg2 {[%emt 0:00:00]} Qc5 {[%emt 0:00:00]} 33. Qb7 {[%emt 0:00:00]} Ne6 {[%emt 0:00:00]} 34. Qd7 {[%emt 0:00:00]} (34. Bd5 {looks sharper.} Nc7 35. Qb8+ Kg7 36. Qb2+) 34... Qc7 {[%emt 0:00:00]} 35. Qe8+ {[%emt 0:00:00]} Kg7 {[%emt 0:00:00]} 36. Bd5 {[%emt 0:00:00]} Nd4 {[%emt 0:00:00]} 37. a4 {[%emt 0:00:48]} Nf5 {[%emt 0:00:24]} 38. h4 {[%emt 0:00:51] [#]} (38. Qe1 $11) 38... a5 {[%emt 0:01:11]} ({Black should try} 38... Nxg3 $1 $17 39. fxg3 Qc2+ 40. Kh3 Qf5+ 41. Kh2 Qxd5) 39. Qe1 {[%emt 0:05:25]} Qb6 {[%emt 0:05:40]} 40. Qc3+ {[%emt 0:01:08]} (40. Qe5+ {keeps more tension.} f6 41. Qe8 Qd6 42. Qf7+) 40... Nd4 {[%emt 0:02:09] The position is equal.} 41. Qc4 {[%emt 0:31:56]} Ne6 $1 {[%emt 0:04:30]} 42. Bxe6 {[%emt 0:00:00]} fxe6 {[%emt 0:00:01]} 43. Qc3+ {[%emt 0:00:00]} Kf7 {[%emt 0:00:14]} 44. Qh8 {[%emt 0:00:00]} Qc6+ {[%emt 0:01:53]} 45. Kh2 {[%emt 0:02:52]} Qxa4 {[%emt 0:00:29] Weighted Error Value: White=0.12 (very precise) /Black=0.09 (flawless)} 1/2-1/2

[Event "FRA-ch Teams Top 16-Bas 2022"]
[Site "Chartres"]
[Date "2022.06.17"]
[Round "9.30"]
[White "Koch, Jean-Rene"]
[Black "Rouler, Charly"]
[Result "1-0"]
[ECO "A34"]
[WhiteElo "2441"]
[BlackElo "2345"]
[Annotator "TA"]
[PlyCount "73"]
[EventDate "2022.06.16"]
[EventType "team-tourn"]
[EventCountry "FRA"]
[SourceTitle "playchess.com"]
[Source "ChessBase"]
[SourceQuality "1"]
[TimeControl "40/5400+30:1800+30"]

{[%evp 19,73,46,62,41,47,45,51,41,50,42,45,19,100,73,146,77,74,78,83,68,78,60,102,114,110,104,145,143,142,118,81,81,82,25,29,24,19,25,166,154,204,161,434,423,439,431,438,420,413,408,430,268,557,550,933,865]} 1. c4 {[%emt 0:00:02]} Nf6 {[%emt 0:00:07]} 2. Nc3 {[%emt 0:00:28]} c5 {[%emt 0:00:36]} 3. Nf3 {[%emt 0:01:31]} b6 {[%emt 0:00:17]} 4. e4 {[%emt 0:02:30]} d6 {[%emt 0:01:05]} 5. d4 {[%emt 0:01:27]} cxd4 {[%emt 0:00:07]} 6. Nxd4 {[%emt 0:00:05]} Bb7 {[%emt 0:00:13]} 7. Qe2 {[%emt 0:04:35]} e6 {[%emt 0:04:34]} 8. g3 {[%emt 0:00:34]} a6 {[%emt 0:00:30]} 9. Bg2 {[%emt 0:04:30]} Be7 {[%emt 0:00:22]} 10. O-O {[%emt 0:04:11]} Qc7 {[%emt 0:00:09]} 11. Be3 {[%emt 0:07:15] A34: Symmetrical English: 2 Nc3, lines with ...d5.} Nbd7 {[%emt 0:02:12]} 12. Rac1 {[%emt 0:02:30][%cal Oc3d5]} O-O {[%emt 0:02:34]} 13. b3 {[%emt 0:11:35] White is slightly better.} Rac8 {[%emt 0:01:25]} 14. f4 {[%emt 0:08:35][%cal Bf2f4,Bf4f5][%mdl 32]} Rfe8 {[%emt 0:00:58]} 15. g4 {[%emt 0:15:08] [#] g5 is the strong threat.} g6 $146 {[%emt 0:02:05]} (15... Nc5 $11) ({Predecessor:} 15... Nc5 16. Bd2 g6 17. g5 Nh5 18. f5 Bf8 19. fxe6 fxe6 20. Bh3 Bg7 21. Qe3 Be5 {½-½ (27) Schlemmer,H-Drill,F GER corr 1989}) 16. f5 {[%emt 0:03:07]} e5 {[%emt 0:15:36] [#]} (16... exf5 $142 17. gxf5 (17. exf5 d5 $11) 17... Qd8) 17. Nd5 {[%emt 0:02:35]} ({White should try} 17. fxg6 $1 hxg6 18. Nc2) 17... Qd8 $16 {[%emt 0:03:13]} 18. Nc2 {[%emt 0:07:40][%cal Bd4c2,Bc2e3,Be3g4][%mdl 32] 0x0.0022fab78b80dp-1022s more active pieces.} Nxd5 {[%emt 0:03:08]} 19. exd5 {[%emt 0:00:59]} Bg5 {[%emt 0:06:08][%cal Og5f4]} 20. Qf2 {[%emt 0:03:50] Against Bf4} Rf8 {[%emt 0:03:54]} 21. Bxg5 {[%emt 0:01:55]} Qxg5 {[%emt 0:00:03]} 22. Ne3 {[%emt 0:00:14]} e4 {[%emt 0:20:44]} 23. h4 {[%emt 0:02:49]} (23. Bxe4 Rce8 24. h4 Qe7 25. fxg6 fxg6 $19) 23... Qe7 {[%emt 0:05:04]} 24. f6 {[%emt 0:14:25]} Qe5 25. g5 $36 {[%emt 0:00:30][%mdl 2048] Strongly threatening Bh3. Keeping Black busy.} h5 {[%emt 0:27:56]} 26. gxh6 {[%emt 0:00:30]} (26. Bh3 $16 Rc7 27. Bxd7 Rxd7 28. Qf4) 26... Nc5 {[%emt 0:00:30]} 27. Ng4 {[%emt 0:00:30]} Qh5 {[%emt 0:00:30]} 28. Qg3 {[%emt 0:00:30] Threatens to win with Ne3.} Rcd8 {[%emt 0:00:30] Black cannot hold the game after this.} (28... Rce8 $11 {and Black stays safe.}) 29. Rce1 $18 {[%emt 0:00:30]} Rfe8 {[%emt 0:00:00]} (29... Bc8 $16 {keeps fighting.}) 30. Nf2 {[%emt 0:00:00][%cal Rg2e4]} Qe5 $2 {[%emt 0:00:00]} (30... Bc8 {was necessary.} 31. Nxe4 (31. b4 Nd3 $16) 31... Nxe4 32. Bxe4 (32. Rxe4 Rxe4 33. Bxe4 Qxh6 $16) 32... Qxh6) 31. Nxe4 {[%emt 0:00:00]} Nxe4 {[%emt 0:00:00]} 32. Qxe5 {[%emt 0:00:00]} Rxe5 {[%emt 0:02:00]} 33. Rxe4 {[%emt 0:02:00]} ({Less strong is} 33. Bxe4 Rde8 34. Rf4 Bc8 $14) 33... Rxe4 {[%emt 0:00:30]} 34. Bxe4 {[%emt 0:00:30] KRB-KRB} Kh8 {[%emt 0:00:30]} 35. Re1 {[%emt 0:00:30][%cal Oe4g6] Hoping for Bxg6!} Re8 $2 {[%emt 0:00:00]} (35... Kh7 {is a better defense.} 36. Bd3 Rf8) 36. Kf2 {[%emt 0:00:00][%cal Oe4g6] Black must now prevent Bxg6!} Bc8 {[%emt 0:00:00] [#]} 37. Bxg6 $1 {[%emt 0:00:00][%mdl 512] Weighted Error Value: White=0.19 (very precise) /Black=0.55} 1-0

[Event "FRA-ch Teams Top 16-Bas 2022"]
[Site "Chartres"]
[Date "2022.06.17"]
[Round "9.31"]
[White "Benitah, Yohan"]
[Black "Visakh N R"]
[Result "0-1"]
[ECO "A65"]
[WhiteElo "2383"]
[BlackElo "2506"]
[Annotator "TA"]
[PlyCount "70"]
[EventDate "2022.06.16"]
[EventType "team-tourn"]
[EventCountry "FRA"]
[SourceTitle "playchess.com"]
[Source "ChessBase"]
[SourceQuality "1"]
[TimeControl "40/5400+30:1800+30"]

{[%evp 23,70,16,29,2,12,17,0,-12,-31,-25,0,0,-8,-51,-15,-34,-20,-29,-29,-25,-43,-71,-93,-111,-100,-108,-101,-145,-58,-120,-117,-88,-94,-270,-255,-292,-293,-261,-249,-257,-227,-695,-695,-802,-783,-772,-768,-746,-734]} 1. d4 {[%emt 0:00:04]} Nf6 {[%emt 0:00:02]} 2. c4 {[%emt 0:00:06]} c5 {[%emt 0:00:24]} 3. d5 {[%emt 0:00:07]} e6 {[%emt 0:00:05]} 4. Nc3 {[%emt 0:00:06]} exd5 {[%emt 0:00:03]} 5. cxd5 {[%emt 0:00:06]} d6 {[%emt 0:00:16]} 6. e4 {[%emt 0:00:20]} g6 {[%emt 0:00:10]} 7. f3 {[%emt 0:03:02]} Bg7 {[%emt 0:00:44]} 8. Bg5 {[%emt 0:00:15]} h6 {[%emt 0:00:17]} 9. Be3 {[%emt 0:00:07]} a6 {[%emt 0:00:12]} 10. a4 {[%emt 0:00:10]} O-O {[%emt 0:00:17]} 11. Qd2 {[%emt 0:00:06]} Re8 {[%emt 0:00:36]} 12. Nge2 {[%emt 0:00:14]} Nbd7 {[%emt 0:00:08]} 13. Nd1 {[%emt 0:01:37] A65: Modern Benoni: 6 e4.} Ne5 {[%emt 0:00:19]} 14. Nec3 {[%emt 0:00:05]} Nh5 {[%emt 0:00:10]} 15. Nf2 {[%emt 0:09:57] The position is equal.} g5 {[%emt 0:09:19]} 16. Be2 {[%emt 0:01:09]} Qf6 {[%emt 0:00:47]} 17. O-O {[%emt 0:13:01]} Nf4 {[%emt 0:01:51] [#]} 18. a5 $146 {[%emt 0:01:29]} (18. Bxf4 $5 Qxf4 19. Qxf4 gxf4 20. Kh1 $11) ({Predecessor:} 18. Kh1 Bd7 19. Ng4 Qg6 20. Nxe5 Bxe5 21. Bc4 f5 22. g3 Nh3 23. Bd3 f4 24. gxf4 Nxf4 {1-0 (37) Miljkovic,M (2172)-Stefanovic,V (2142) Jagodina 2011}) 18... Rb8 {[%emt 0:12:28]} 19. Ra3 {[%emt 0:07:42]} b5 {[%emt 0:07:37]} 20. axb6 $1 {[%emt 0:02:21]} Nxe2+ {[%emt 0:05:07]} 21. Qxe2 {[%emt 0:00:46]} Rxb6 {[%emt 0:00:02]} 22. Rc1 {[%emt 0:10:03]} Qg6 {[%emt 0:07:00] Black is more active.} 23. Na4 {[%emt 0:08:50]} Rb8 {[%emt 0:01:27]} 24. Kh1 {[%emt 0:14:27]} f5 {[%emt 0:09:07]} 25. exf5 {[%emt 0:06:24]} Qxf5 {[%emt 0:00:28]} ({Black should try} 25... Bxf5 $17 {White must now prevent ...Rb4.} 26. Re1 g4) 26. Ne4 {[%emt 0:03:15]} (26. Nc3 $1 $15) 26... Qg6 $17 {[%emt 0:00:23]} 27. Nac3 {[%emt 0:04:31]} g4 {[%emt 0:15:05]} 28. f4 $2 {[%emt 0:07:04] This costs White the game.} (28. Rg1 $17) 28... Nf7 $19 {[%emt 0:00:26]} 29. Ng3 {[%emt 0:00:37] [#]} h5 $1 {[%emt 0:00:26]} 30. f5 {[%emt 0:06:00]} Bxf5 {[%emt 0:00:08]} 31. Nxf5 {[%emt 0:00:34]} Qxf5 {[%emt 0:00:02]} 32. Qd2 {[%emt 0:00:31]} (32. Rf1 Qg6 33. Nd1) 32... Ne5 {[%emt 0:00:56][%cal Bf7e5,Be5c4,Bc4d2][%mdl 32] And now ...Nc4 would win. Black is clearly winning.} 33. Ne2 {[%emt 0:01:16] [#]} Nc4 $1 {[%emt 0:01:40][%mdl 512]} 34. Ng3 {[%emt 0:00:32]} Nxd2 {[%emt 0:02:27]} 35. Nxf5 {[%emt 0:00:01]} Bxb2 {[%emt 0:00:03] Weighted Error Value: White=0.46/Black=0.07 (flawless)} 0-1

[Event "FRA-ch Teams Top 16-Bas 2022"]
[Site "Chartres"]
[Date "2022.06.17"]
[Round "9.32"]
[White "Schippke, Manon"]
[Black "Djidjeli, Sarah"]
[Result "1-0"]
[ECO "B31"]
[WhiteElo "2072"]
[BlackElo "2040"]
[Annotator "NA RC"]
[PlyCount "111"]
[EventDate "2022.06.16"]
[EventType "team-tourn"]
[EventCountry "FRA"]
[SourceTitle "playchess.com"]
[Source "ChessBase"]
[SourceQuality "1"]
[TimeControl "40/5400+30:1800+30"]

1. e4 {[%emt 0:00:02]} c5 {[%emt 0:00:03]} 2. Nf3 {[%emt 0:00:03]} Nc6 {[%emt 0:00:03]} 3. Bb5 {[%emt 0:00:02]} g6 {[%emt 0:00:06]} 4. O-O {[%emt 0:00:03]} Bg7 {[%emt 0:00:05]} 5. c3 {[%emt 0:00:02]} Nf6 {[%emt 0:00:11]} 6. Re1 {[%emt 0:00:03]} O-O {[%emt 0:00:11]} 7. d4 {[%emt 0:00:04]} d5 {[%emt 0:00:07]} 8. e5 {[%emt 0:00:02]} Ne4 {[%emt 0:00:08]} 9. Be3 {[%emt 0:00:19]} Qb6 {[%emt 0:01:40]} 10. Bxc6 {[%emt 0:00:04]} bxc6 {[%emt 0:00:06]} 11. Qc1 {[%emt 0:00:05]} cxd4 {[%emt 0:00:33]} 12. cxd4 {[%emt 0:00:09]} Rb8 {[%emt 0:13:07]} 13. b3 {[%emt 0:03:57]} f6 {[%emt 0:06:51]} 14. Nc3 {[%emt 0:10:39]} f5 {[%emt 0:23:06]} 15. Na4 {[%emt 0:06:56]} Qb5 {[%emt 0:05:23]} 16. Bg5 {[%emt 0:04:34]} Rf7 {[%emt 0:06:51]} 17. Qf4 {[%emt 0:06:06]} e6 {[%emt 0:02:41]} 18. Rac1 {[%emt 0:00:45]} Bd7 {[%emt 0:01:14]} 19. Bh6 {[%emt 0:07:49]} Re8 {[%emt 0:08:00]} 20. Bxg7 {[%emt 0:03:35]} Rxg7 {[%emt 0:00:33]} 21. h4 {[%emt 0:01:20]} Qa5 {[%emt 0:03:13]} 22. Re2 {[%emt 0:05:29]} Qd8 {[%emt 0:01:37]} 23. Ng5 {[%emt 0:03:16]} Nxg5 {[%emt 0:06:20]} 24. hxg5 {[%emt 0:02:01]} h6 {[%emt 0:00:15]} 25. gxh6 {[%emt 0:00:44]} g5 {[%emt 0:00:05]} 26. Qh2 {[%emt 0:03:26]} Rg6 {[%emt 0:01:18]} 27. Nc5 {[%emt 0:00:44]} Kh7 {[%emt 0:05:29]} 28. Qh5 {[%emt 0:08:49]} Reg8 {[%emt 0:02:32]} 29. Nxd7 {[%emt 0:03:05]} Qxd7 {[%emt 0:00:03]} 30. Rec2 {[%emt 0:00:04]} Rxh6 {[%emt 0:00:23]} 31. Qe2 {[%emt 0:00:05]} Kg6 {[%emt 0:00:31]} 32. Rxc6 {[%emt 0:05:06]} Rgh8 {[%emt 0:01:43]} 33. f3 {[%emt 0:00:12]} Rh1+ {[%emt 0:01:03]} 34. Kf2 {[%emt 0:00:02]} Rxc1 {[%emt 0:00:20]} 35. Rxc1 {[%emt 0:00:02]} Qh7 {[%emt 0:00:09]} 36. Qa6 {[%emt 0:01:55]} Qh4+ {[%emt 0:02:20]} 37. Ke2 {[%emt 0:00:03]} Re8 {[%emt 0:02:01]} 38. Rc6 {[%emt 0:03:48]} Qxd4 {[%emt 0:01:04]} 39. Rxe6+ {[%emt 0:00:04]} Rxe6 {[%emt 0:00:04]} 40. Qxe6+ {[%emt 0:00:03]} Kh5 {[%emt 0:04:06]} 41. Qxf5 {[%emt 0:35:20]} Qb2+ {[%emt 0:31:15]} 42. Kf1 {[%emt 0:00:33]} Qa1+ {[%emt 0:00:00]} 43. Kf2 {[%emt 0:00:00]} Qd4+ {[%emt 0:00:00]} 44. Ke2 {[%emt 0:00:00]} Qb2+ {[%emt 0:00:00]} 45. Kd1 {[%emt 0:00:00]} Qa1+ {[%emt 0:00:00]} 46. Kc2 {[%emt 0:00:00]} Qxa2+ {[%emt 0:00:00]} 47. Kc3 {[%emt 0:00:00]} Qa1+ {[%emt 0:00:00]} 48. Kd2 {[%emt 0:00:00]} Qb2+ {[%emt 0:00:00]} 49. Qc2 {[%emt 0:00:00]} Qd4+ {[%emt 0:00:00]} 50. Qd3 {[%emt 0:00:00]} Qf2+ {[%emt 0:00:00]} 51. Kc3 {[%emt 0:00:00]} Qc5+ {[%emt 0:00:00]} 52. Kb2 {[%emt 0:00:00]} Kh4 {[%emt 0:00:00]} 53. e6 {[%emt 0:04:25]} d4 {[%emt 0:02:20]} 54. Qe4+ {[%emt 0:01:50]} Kg3 {[%emt 0:00:14]} 55. Qe1+ {[%emt 0:00:32]} Kxg2 {[%emt 0:02:47]} 56. e7 {[%emt 0:00:08]} 1-0